fUST/lending_fUST_20260205
["ID","MTS","AMOUNT","RATE_DAILY","PERIOD"]
[404572671,1770305458716,-7798.25,0.00055342,120]
[404572672,1770305458727,-2202.72,0.00055342,120]
[404572673,1770305458738,-500.0,0.00055342,120]
[404572674,1770305458750,-500.0,0.00055342,120]
[404572675,1770305458759,-500.0,0.00055342,120]
[404572676,1770305458769,-500.0,0.00055342,120]
[404572677,1770305458781,-544.71587222,0.00055342,120]
[404572678,1770305458792,-2952.51,0.00055342,120]
[404572679,1770305458801,-843.92,0.00055342,120]
[404572680,1770305458811,-500.0,0.00055342,120]
[404572681,1770305458820,-500.0,0.00055342,120]
[404572682,1770305458836,-1650.61,0.00055342,120]
[404572683,1770305458846,-546.51385002,0.00055342,120]
[404572684,1770305458855,-500.0,0.00055342,120]
[404572685,1770305458865,-795.87,0.00055342,120]
[404572686,1770305458876,-500.0,0.00055342,120]
[404572687,1770305458886,-500.0,0.00055342,7]
[404572688,1770305458898,-500.0,0.00055342,120]
[404572689,1770305458908,-500.0,0.00055342,120]
[404572690,1770305458917,-500.0,0.00055342,120]
[404572691,1770305458927,-709.18,0.00055342,120]
[404572692,1770305458936,-1000.0,0.00055342,120]
[404572693,1770305458946,-178.307037,0.00055342,120]
[404572694,1770305458956,-500.0,0.00055342,120]
[404572695,1770305458966,-500.0,0.00055342,120]
[404572696,1770305458976,-500.0,0.00055342,120]
[404572697,1770305458986,-500.0,0.00055342,120]
[404572698,1770305458996,-500.0,0.00055342,120]
[404572699,1770305459005,-500.0,0.00055342,120]
[404572700,1770305459015,-500.0,0.00055342,120]
[404572701,1770305459024,-500.0,0.00055342,120]
[404572702,1770305459034,-151.0,0.00055342,120]
[404572703,1770305459044,-500.0,0.00055342,120]
[404572704,1770305459053,-500.0,0.00055342,120]
[404572705,1770305459064,-500.0,0.00055342,120]
[404572706,1770305459074,-500.0,0.00055342,120]
[404572707,1770305459088,-500.0,0.00055342,120]
[404572708,1770305459098,-500.0,0.00055342,120]
[404572709,1770305459107,-515.94725062,0.00055342,120]
[404572710,1770305459117,-913.301194,0.00055342,120]
[404572711,1770305459127,-913.301194,0.00055342,120]
[404572712,1770305459137,-913.301194,0.00055342,120]
[404572713,1770305459146,-500.0,0.00055342,120]
[404572714,1770305459156,-913.301194,0.00055342,120]
[404572715,1770305459166,-500.0,0.00055342,120]
[404572716,1770305459176,-600.0,0.00055342,2]
[404572717,1770305459186,-860.2,0.00055342,120]
[404572718,1770305459196,-500.0,0.00055342,120]
[404572719,1770305459205,-151.0,0.00055342,120]
[404572720,1770305459214,-151.0,0.00055342,120]
[404572721,1770305459224,-151.0,0.00055342,120]
[404572722,1770305459234,-151.0,0.00055342,120]
[404572723,1770305459243,-158.749187,0.00055342,120]
[404572724,1770305459255,-500.0,0.00055342,120]
[404572725,1770305459264,-500.0,0.00055342,8]
[404572726,1770305459274,-500.0,0.00055342,120]
[404572727,1770305459285,-500.0,0.00055342,120]
[404572728,1770305459295,-500.0,0.00055342,120]
[404572729,1770305459306,-151.0,0.00055342,120]
[404572730,1770305459315,-528.18033862,0.00055342,120]
[404572731,1770305459330,-151.0,0.00055342,120]
[404572732,1770305459339,-252.78122,0.00055342,120]
[404572733,1770305459348,-500.0,0.00055342,120]
[404572734,1770305459358,-500.0,0.00055342,120]
[404572735,1770305459367,-409.88797838,0.00055342,120]
[404572736,1770305459376,-500.0,0.00055342,120]
[404572737,1770305459386,-500.0,0.00055342,120]
[404572738,1770305459395,-500.0,0.00055342,120]
[404572739,1770305459404,-500.0,0.00055342,120]
[404572740,1770305459414,-534.75,0.00055342,120]
[404572741,1770305459423,-500.0,0.00055342,120]
[404572742,1770305459432,-500.0,0.00055342,120]
[404572743,1770305459442,-500.0,0.00055342,120]
[404572744,1770305459452,-500.0,0.00055342,120]
[404572745,1770305459462,-500.0,0.00055342,120]
[404572746,1770305459471,-500.0,0.00055342,120]
[404572747,1770305459481,-500.0,0.00055342,120]
[404572748,1770305459490,-500.0,0.00055342,120]
[404572749,1770305459499,-500.0,0.00055342,120]
[404572750,1770305459509,-500.0,0.00055342,120]
[404572751,1770305459517,-500.0,0.00055342,120]
[404572752,1770305459527,-500.0,0.00055342,120]
[404572753,1770305459536,-1000.0,0.00055342,2]
[404572754,1770305459546,-500.0,0.00055342,120]
[404572755,1770305459555,-586.39608682,0.00055342,120]
[404572756,1770305459564,-500.0,0.00055342,120]
[404572757,1770305459573,-500.0,0.00055342,120]
[404572758,1770305459585,-500.0,0.00055342,120]
[404572759,1770305459594,-757.11,0.00055342,120]
[404572760,1770305459603,-1211.68,0.00055342,2]
[404572761,1770305459613,-500.0,0.00055342,120]
[404572762,1770305459623,-500.0,0.00055342,120]
[404572763,1770305459632,-958.98,0.00055342,120]
[404572764,1770305459642,-500.0,0.00055342,120]
[404572765,1770305459652,-500.0,0.00055342,120]
[404572766,1770305459661,-500.0,0.00055342,120]
[404572767,1770305459670,-686.83,0.00055342,120]
[404572768,1770305459679,-500.0,0.00055342,120]
[404572769,1770305459689,-500.0,0.00055342,120]
[404572770,1770305459699,-500.0,0.00055342,120]
[404572771,1770305459708,-500.0,0.00055342,120]
[404572772,1770305459718,-500.0,0.00055342,120]
[404572773,1770305459727,-500.0,0.00055342,120]
[404572774,1770305459737,-500.0,0.00055342,120]
[404572775,1770305459747,-500.0,0.00055342,120]
[404572776,1770305459757,-525.40020828,0.00055342,120]
[404572777,1770305459767,-500.0,0.00055342,120]
[404572778,1770305459776,-500.0,0.00055342,120]
[404572779,1770305459786,-579.20387122,0.00055342,120]
[404572780,1770305459795,-500.0,0.00055342,120]
[404572781,1770305459805,-500.0,0.00055342,120]
[404572782,1770305459814,-500.0,0.00055342,120]
[404572783,1770305459823,-500.0,0.00055342,120]
[404572784,1770305459838,-319.55,0.00055342,120]
[404572785,1770305459848,-244.80309518,0.00055342,120]
[404572786,1770305459858,-500.0,0.00055342,120]
[404572787,1770305459868,-538.11317503,0.00055342,120]
[404572788,1770305459878,-500.0,0.00055342,120]
[404572789,1770305459888,-899.28,0.00055342,120]
[404572790,1770305459897,-500.0,0.00055342,120]
[404572791,1770305459908,-312.03117658,0.00055342,120]
[404572792,1770305459917,-500.0,0.00055342,120]
[404572793,1770305459927,-500.0,0.00055342,120]
[404572794,1770305459936,-500.0,0.00055342,120]
[404572795,1770305459945,-1370.64,0.00055342,120]
[404572796,1770305459955,-500.0,0.00055342,120]
[404572797,1770305459965,-500.0,0.00055342,120]
[404572798,1770305459975,-658.98,0.00055342,14]
[404572799,1770305459984,-473.77480552,0.00055342,120]
[404572800,1770305459994,-2352.07,0.00055342,30]
[404572801,1770305460003,-500.0,0.00055342,120]
[404572802,1770305460013,-65810.86,0.00055342,14]
[404572803,1770305460022,-500.0,0.00055342,120]
[404572804,1770305460031,-429.51580577,0.00055342,120]
[404572805,1770305460042,-396.23172031,0.00055342,120]
[404572806,1770305460053,-500.0,0.00055342,120]
[404572807,1770305460063,-500.0,0.00055342,120]
[404572808,1770305460073,-500.0,0.00055342,120]
[404572809,1770305460087,-500.0,0.00055342,120]
[404572810,1770305460097,-500.0,0.00055342,120]
[404572811,1770305460107,-185.61200096,0.00055342,120]
[404572812,1770305460116,-500.0,0.00055342,120]
[404572813,1770305460126,-1568.85,0.00055342,120]
[404572814,1770305460135,-500.0,0.00055342,120]
[404572815,1770305460145,-501.24790665,0.00055342,120]
[404572816,1770305460155,-500.0,0.00055342,60]
[404572817,1770305460165,-4399.7,0.00055342,21]
[404572818,1770305460175,-500.0,0.00055342,54]
[404572819,1770305460189,-724.89,0.00055342,120]
[404572820,1770305460203,-500.0,0.00055342,120]
[404572821,1770305460212,-500.0,0.00055342,120]
[404572822,1770305460221,-500.0,0.00055342,60]
[404572823,1770305460230,-500.0,0.00055342,120]
[404572824,1770305460243,-1207.7,0.00055342,120]
[404572825,1770305460252,-500.0,0.00055342,120]
[404572826,1770305460261,-500.0,0.00055342,120]
[404572827,1770305460270,-500.0,0.00055342,120]
[404572828,1770305460279,-500.0,0.00055342,120]
[404572829,1770305460289,-1537.54,0.00055342,120]
[404572830,1770305460298,-1689.93,0.00055342,120]
[404572831,1770305460307,-547.47,0.00055342,120]
[404572832,1770305460317,-500.0,0.00055342,120]
[404572833,1770305460331,-151.0,0.00055342,120]
[404572834,1770305460341,-500.0,0.00055342,120]
[404572835,1770305460350,-151.0,0.00055342,120]
[404572836,1770305460361,-773.92,0.00055342,120]
[404572837,1770305460371,-500.0,0.00055342,120]
[404572838,1770305460380,-151.0,0.00055342,120]
[404572839,1770305460390,-500.0,0.00055342,120]
[404572840,1770305460399,-500.0,0.00055342,120]
[404572841,1770305460408,-151.0,0.00055342,60]
[404572842,1770305460417,-151.0,0.00055342,120]
[404572843,1770305460427,-1484.47,0.00055342,120]
[404572844,1770305460435,-151.0,0.00055342,60]
[404572845,1770305460557,-151.0,0.00055342,120]
[404572846,1770305460567,-151.0,0.00055342,120]
[404572847,1770305460582,-151.0,0.00055342,120]
[404572848,1770305460592,-151.0,0.00055342,120]
[404572849,1770305460602,-151.0,0.00055342,120]
[404572850,1770305460611,-256.99875629,0.00055342,120]
[404572851,1770305460622,-500.0,0.00055342,120]
[404572852,1770305460631,-500.0,0.00055342,120]
[404572853,1770305460642,-500.0,0.00055342,120]
[404572854,1770305460654,-350.0,0.00055342,120]
[404572855,1770305460663,-500.0,0.00055342,120]
[404572856,1770305460673,-350.0,0.00055342,120]
[404572857,1770305460683,-350.0,0.00055342,120]
[404572858,1770305460694,-350.0,0.00055342,120]
[404572859,1770305460704,-2746.19,0.00055342,90]
[404572860,1770305460714,-640.35882736,0.00055342,120]
[404572861,1770305460724,-214.924333,0.00055342,120]
[404572862,1770305460734,-500.0,0.00055342,120]
[404572863,1770305460744,-323.89168486,0.00055342,120]
[404572864,1770305460764,-500.0,0.00055342,120]
[404572865,1770305460775,-500.0,0.00055342,120]
[404572866,1770305460785,-500.0,0.00055342,120]
[404572867,1770305460795,-357.14734,0.00055342,120]
[404572868,1770305460806,-500.0,0.00055342,120]
[404572869,1770305460816,-357.14734,0.00055342,120]
[404572870,1770305460833,-500.0,0.00055342,120]
[404572871,1770305460844,-500.0,0.00055342,120]
[404572872,1770305460854,-357.14734,0.00055342,120]
[404572873,1770305460865,-357.14734,0.00055342,120]
[404572874,1770305460876,-500.0,0.00055342,120]
[404572875,1770305460887,-151.0,0.00055342,120]
[404572876,1770305460898,-560.70846906,0.00055342,120]
[404572877,1770305460909,-151.0,0.00055342,120]
[404572878,1770305460919,-151.0,0.00055342,120]
[404572879,1770305460930,-166.591389,0.00055342,120]
[404572880,1770305460940,-500.0,0.00055342,120]
[404572881,1770305460950,-151.0,0.00055342,120]
[404572882,1770305460960,-154.26,0.00055616,120]
[404572883,1770305460971,-700.0,0.00055741,120]
[404572884,1770305460981,-383.17,0.00055781,120]
[404572885,1770305460992,-1177.56,0.000558,120]
[404572886,1770305461002,-1000.0,0.0005589,120]
[404572887,1770305461012,-500.0,0.0005589,120]
[404572888,1770305461022,-500.0,0.0005589,120]
[404572889,1770305461032,-577.35228612,0.0005589,120]
[404572890,1770305461043,-500.0,0.0005589,120]
[404572891,1770305461053,-500.0,0.0005589,120]
[404572892,1770305461062,-500.0,0.0005589,120]
[404572893,1770305461072,-500.0,0.0005589,120]
[404572894,1770305461089,-500.0,0.0005589,120]
[404572895,1770305461099,-500.0,0.0005589,120]
[404572896,1770305461109,-500.0,0.0005589,120]
[404572897,1770305461119,-500.0,0.0005589,120]
[404572898,1770305461130,-1000.0,0.0005589,2]
[404572899,1770305461140,-500.0,0.0005589,120]
[404572900,1770305461150,-528.64781115,0.0005589,120]
[404572901,1770305461160,-500.0,0.0005589,120]
[404572902,1770305461170,-195.39064717,0.0005589,120]
[404572903,1770305461180,-1007.5,0.0005589,30]
[404572904,1770305461190,-2025.68,0.0005589,120]
[404572905,1770305461199,-739.64,0.0005589,120]
[404572906,1770305461208,-891.32,0.0005589,7]
[404572907,1770305461218,-500.0,0.0005589,120]
[404572908,1770305461228,-551.9,0.0005589,120]
[404572909,1770305461239,-606.158908,0.0005589,120]
[404572910,1770305461249,-2072.5,0.0005589,120]
[404572911,1770305461262,-723.54,0.0005589,120]
[404572912,1770305461273,-7798.25,0.0005589,120]
[404572913,1770305461283,-7798.25,0.0005589,120]
[404572914,1770305461295,-2202.72,0.0005589,120]
[404572915,1770305461306,-576.85357948,0.0005589,120]
[404572916,1770305461319,-500.0,0.0005589,120]
[404572917,1770305461357,-500.0,0.0005589,120]
[404572918,1770305461374,-500.0,0.0005589,120]
[404572919,1770305461385,-2952.51,0.0005589,120]
[404572920,1770305461396,-843.92,0.0005589,120]
[404572921,1770305461406,-500.0,0.0005589,120]
[404572922,1770305461416,-500.0,0.0005589,120]
[404572923,1770305461426,-1650.61,0.0005589,120]
[404572924,1770305461436,-151.0,0.0005589,120]
[404572925,1770305461446,-500.0,0.0005589,120]
[404572926,1770305461456,-795.87,0.0005589,120]
[404572927,1770305461466,-500.0,0.0005589,120]
[404572928,1770305461476,-500.0,0.0005589,120]
[404572929,1770305461486,-500.0,0.0005589,120]
[404572930,1770305461497,-635.34058013,0.0005589,120]
[404572931,1770305461507,-709.18,0.0005589,120]
[404572932,1770305461517,-1097.9380265,0.0005589,120]
[404572933,1770305461528,-500.0,0.0005589,120]
[404572934,1770305461538,-500.0,0.0005589,120]
[404572935,1770305461548,-500.0,0.0005589,120]
[404572936,1770305461559,-500.0,0.0005589,120]
[404572937,1770305461569,-500.0,0.0005589,120]
[404572938,1770305461583,-606.28805844,0.0005589,120]
[404572939,1770305461593,-500.0,0.0005589,120]
[404572940,1770305461603,-604.74982073,0.0005589,120]
[404572941,1770305461613,-500.0,0.0005589,120]
[404572942,1770305461623,-633.13712997,0.0005589,120]
[404572943,1770305461634,-500.0,0.0005589,120]
[404572944,1770305461644,-572.31976683,0.0005589,120]
[404572945,1770305461655,-500.0,0.0005589,120]
[404572946,1770305461669,-500.0,0.0005589,120]
[404572947,1770305461685,-500.0,0.0005589,120]
[404572948,1770305461695,-600.0,0.0005589,2]
[404572949,1770305461705,-860.2,0.0005589,120]
[404572950,1770305461715,-500.0,0.0005589,120]
[404572951,1770305461726,-638.9957463,0.0005589,120]
[404572952,1770305461736,-500.0,0.0005589,8]
[404572953,1770305461747,-600.32621463,0.0005589,120]
[404572954,1770305461758,-390.38126873,0.0005589,120]
[404572955,1770305461768,-160.91069284,0.0005589,120]
[404572956,1770305461778,-500.0,0.0005589,120]
[404572957,1770305461789,-588.724615,0.0005589,120]
[404572958,1770305461799,-500.0,0.0005589,120]
[404572959,1770305461809,-604.15574391,0.0005589,120]
[404572960,1770305461819,-500.0,0.0005589,120]
[404572961,1770305461835,-534.75,0.0005589,120]
[404572962,1770305461846,-500.0,0.0005589,120]
[404572963,1770305461856,-500.0,0.0005589,120]
[404572964,1770305461867,-537.084014,0.0005589,30]
[404572965,1770305461878,-500.0,0.0005589,120]
[404572966,1770305461890,-537.084014,0.0005589,30]
[404572967,1770305461900,-157.279037,0.0005589,120]
[404572968,1770305461913,-537.084014,0.0005589,30]
[404572969,1770305461923,-157.279037,0.0005589,120]
[404572970,1770305461933,-537.084014,0.0005589,30]
[404572971,1770305461943,-500.0,0.0005589,120]
[404572972,1770305461953,-157.279037,0.0005589,120]
[404572973,1770305461963,-157.279037,0.0005589,120]
[404572974,1770305461972,-500.0,0.0005589,120]
[404572975,1770305461983,-151.0,0.0005589,120]
[404572976,1770305461997,-500.0,0.0005589,120]
[404572977,1770305462009,-151.0,0.0005589,120]
[404572978,1770305462019,-151.0,0.0005589,120]
[404572979,1770305462029,-500.0,0.0005589,120]
[404572980,1770305462039,-500.0,0.0005589,120]
[404572981,1770305462048,-151.0,0.0005589,120]
[404572982,1770305462058,-151.0,0.0005589,120]
[404572983,1770305462069,-380.069022,0.0005589,120]
[404572984,1770305462084,-500.0,0.0005589,120]
[404572985,1770305462094,-380.069022,0.0005589,120]
[404572986,1770305462104,-380.069022,0.0005589,120]
[404572987,1770305462114,-380.069022,0.0005589,120]
[404572988,1770305462124,-500.0,0.0005589,120]
[404572989,1770305462135,-338.281802,0.0005589,120]
[404572990,1770305462146,-338.281802,0.0005589,120]
[404572991,1770305462156,-500.0,0.0005589,120]
[404572992,1770305462167,-338.281802,0.0005589,120]
[404572993,1770305462177,-1000.0,0.0005589,2]
[404572994,1770305462188,-338.281802,0.0005589,120]
[404572995,1770305462198,-500.0,0.0005589,120]
[404572996,1770305462208,-532.75973349,0.0005589,120]
[404572997,1770305462218,-500.0,0.0005589,120]
[404572998,1770305462228,-757.11,0.0005589,120]
[404572999,1770305462239,-1211.68,0.0005589,2]
[404573000,1770305462249,-500.0,0.0005589,120]
[404573001,1770305462263,-529.49484185,0.0005589,120]
[404573002,1770305462272,-958.98,0.0005589,120]
[404573003,1770305462283,-500.0,0.0005589,120]
[404573004,1770305462293,-500.0,0.0005589,120]
[404573005,1770305462303,-686.83,0.0005589,120]
[404573006,1770305462313,-151.586737,0.0005589,60]
[404573007,1770305462325,-550.92453552,0.0005589,120]
[404573008,1770305462342,-500.0,0.0005589,120]
[404573009,1770305462352,-549.05929405,0.0005589,120]
[404573010,1770305462363,-151.0,0.0005589,120]
[404573011,1770305462377,-598.10517263,0.0005589,120]
[404573012,1770305462387,-500.0,0.0005589,120]
[404573013,1770305462398,-151.0,0.0005589,120]
[404573014,1770305462409,-151.0,0.0005589,30]
[404573015,1770305462419,-305.337312,0.0005589,120]
[404573016,1770305462429,-500.0,0.0005589,120]
[404573017,1770305462439,-305.337312,0.0005589,120]
[404573018,1770305462450,-305.337312,0.0005589,120]
[404573019,1770305462460,-151.0,0.0005589,120]
[404573020,1770305462470,-305.337312,0.0005589,120]
[404573021,1770305462480,-151.0,0.0005589,120]
[404573022,1770305462491,-500.0,0.0005589,120]
[404573023,1770305462501,-151.0,0.0005589,120]
[404573024,1770305462511,-500.0,0.0005589,120]
[404573025,1770305462521,-500.0,0.0005589,120]
[404573026,1770305462531,-500.0,0.0005589,120]
[404573027,1770305462541,-151.0,0.0005589,120]
[404573028,1770305462551,-500.0,0.0005589,120]
[404573029,1770305462562,-500.0,0.0005589,120]
[404573030,1770305462573,-162.536543,0.0005589,120]
[404573031,1770305462589,-500.0,0.0005589,120]
[404573032,1770305462599,-162.536543,0.0005589,120]
[404573033,1770305462609,-500.0,0.0005589,120]
[404573034,1770305462619,-162.536543,0.0005589,120]
[404573035,1770305462629,-500.0,0.0005589,120]
[404573036,1770305462639,-162.536543,0.0005589,120]
[404573037,1770305462649,-500.0,0.0005589,120]
[404573038,1770305462660,-151.0,0.0005589,120]
[404573039,1770305462670,-238.149153,0.0005589,120]
[404573040,1770305462680,-238.149153,0.0005589,120]
[404573041,1770305462690,-238.149153,0.0005589,120]
[404573042,1770305462701,-238.149153,0.0005589,120]
[404573043,1770305462711,-319.55,0.0005589,120]
[404573044,1770305462724,-151.0,0.0005589,120]
[404573045,1770305462734,-625.62441372,0.0005589,120]
[404573046,1770305462745,-247.181381,0.0005589,120]
[404573047,1770305462756,-151.0,0.0005589,7]
[404573048,1770305462766,-195.015766,0.0005589,120]
[404573049,1770305462777,-500.0,0.0005589,120]
[404573050,1770305462788,-357.386307,0.0005589,120]
[404573051,1770305462798,-357.386307,0.0005589,120]
[404573052,1770305462808,-357.386307,0.0005589,120]
[404573053,1770305462818,-357.386307,0.0005589,120]
[404573054,1770305462832,-385.137266,0.0005589,120]
[404573055,1770305462843,-899.28,0.0005589,120]
[404573056,1770305462854,-385.137266,0.0005589,120]
[404573057,1770305462865,-500.0,0.0005589,120]
[404573058,1770305462875,-385.137266,0.0005589,120]
[404573059,1770305462885,-385.137266,0.0005589,120]
[404573060,1770305462896,-567.45836178,0.0005589,120]
[404573061,1770305462906,-500.0,0.0005589,120]
[404573062,1770305462917,-500.0,0.0005589,120]
[404573063,1770305462927,-497.77814,0.0005589,28]
[404573064,1770305462937,-151.0,0.0005589,120]
[404573065,1770305462948,-497.77814,0.0005589,28]
[404573066,1770305462959,-207.050177,0.0005589,120]
[404573067,1770305462970,-151.0,0.0005589,120]
[404573068,1770305462981,-497.77814,0.0005589,28]
[404573069,1770305462991,-207.050177,0.0005589,120]
[404573070,1770305463002,-274.9757,0.0005589,120]
[404573071,1770305463014,-497.77814,0.0005589,28]
[404573072,1770305463025,-207.050177,0.0005589,120]
[404573073,1770305463035,-207.050177,0.0005589,120]
[404573074,1770305463047,-1370.64,0.0005589,120]
[404573075,1770305463059,-500.0,0.0005589,120]
[404573076,1770305463070,-658.98,0.0005589,14]
[404573077,1770305463084,-196.050048,0.0005589,120]
[404573078,1770305463096,-196.050048,0.0005589,120]
[404573079,1770305463108,-256.756495,0.0005589,120]
[404573080,1770305463119,-196.050048,0.0005589,120]
[404573081,1770305463130,-256.756495,0.0005589,120]
[404573082,1770305463141,-2352.07,0.0005589,30]
[404573083,1770305463152,-196.050048,0.0005589,120]
[404573084,1770305463164,-256.756495,0.0005589,120]
[404573085,1770305463176,-256.756495,0.0005589,120]
[404573086,1770305463190,-65810.86,0.0005589,14]
[404573087,1770305463201,-151.0,0.0005589,120]
[404573088,1770305463213,-500.0,0.0005589,120]
[404573089,1770305463225,-151.0,0.0005589,120]
[404573090,1770305463236,-151.0,0.0005589,120]
[404573091,1770305463246,-151.0,0.0005589,120]
[404573092,1770305463257,-500.0,0.0005589,120]
[404573093,1770305463269,-151.0,0.0005589,120]
[404573094,1770305463281,-151.0,0.0005589,120]
[404573095,1770305463291,-500.0,0.0005589,120]
[404573096,1770305463302,-251.422387,0.0005589,120]
[404573097,1770305463469,-500.0,0.0005589,120]
[404573098,1770305463481,-500.0,0.0005589,120]
[404573099,1770305463492,-500.0,0.0005589,120]
[404573100,1770305463503,-500.0,0.0005589,120]
[404573101,1770305463514,-1568.85,0.0005589,120]
[404573102,1770305463525,-500.0,0.0005589,120]
[404573103,1770305463536,-500.0,0.0005589,60]
[404573104,1770305463547,-4399.7,0.0005589,21]
[404573105,1770305463560,-500.0,0.0005589,54]
[404573106,1770305463571,-724.89,0.0005589,120]
[404573107,1770305463588,-500.0,0.0005589,120]
[404573108,1770305463599,-500.0,0.0005589,120]
[404573109,1770305463610,-500.0,0.0005589,60]
[404573110,1770305463621,-500.0,0.0005589,120]
[404573111,1770305463632,-1207.7,0.0005589,120]
[404573112,1770305463643,-500.0,0.0005589,120]
[404573113,1770305463654,-556.98561532,0.0005589,120]
[404573114,1770305463666,-500.0,0.0005589,120]
[404573115,1770305463678,-500.0,0.0005589,120]
[404573116,1770305463690,-1537.54,0.0005589,120]
[404573117,1770305463702,-1689.93,0.0005589,120]
[404573118,1770305463714,-547.47,0.0005589,120]
[404573119,1770305463726,-500.0,0.0005589,120]
[404573120,1770305463738,-500.0,0.0005589,120]
[404573121,1770305463751,-773.92,0.0005589,120]
[404573122,1770305463763,-500.0,0.0005589,120]
[404573123,1770305463774,-613.61548388,0.0005589,120]
[404573124,1770305463785,-1484.47,0.0005589,120]
[404573125,1770305463798,-500.0,0.0005589,120]
[404573126,1770305463809,-500.0,0.0005589,120]
[404573127,1770305463821,-500.0,0.0005589,120]
[404573128,1770305463838,-2746.19,0.0005589,90]
[404573129,1770305463849,-521.81168303,0.0005589,120]
[404573130,1770305463860,-500.0,0.0005589,120]
[404573131,1770305463885,-500.0,0.0005589,120]
[404573132,1770305463897,-500.0,0.0005589,120]
[404573133,1770305463908,-500.0,0.0005589,120]
[404573134,1770305463919,-510.316571,0.0005589,120]
[404573135,1770305463930,-500.0,0.0005589,120]
[404573136,1770305463941,-38594.95499886,0.00055953,30]
[404573137,1770305463952,-6125.94097362,0.00056,120]
[404573138,1770305463963,-1470.32726045,0.00056131,30]
[404573139,1770305463974,-154.26,0.00056301,120]
[404573140,1770305463986,-1000.0,0.00056438,120]
[404573141,1770305463997,-500.0,0.00056438,120]
[404573142,1770305464007,-500.0,0.00056438,120]
[404573143,1770305464018,-384.60457915,0.00056438,120]
[404573144,1770305464029,-500.0,0.00056438,120]
[404573145,1770305464040,-548.43586158,0.00056438,120]
[404573146,1770305464051,-500.0,0.00056438,120]
[404573147,1770305464062,-500.0,0.00056438,120]
[404573148,1770305464073,-500.0,0.00056438,120]
[404573149,1770305464090,-500.0,0.00056438,120]
[404573150,1770305464101,-500.0,0.00056438,120]
[404573151,1770305464112,-1000.0,0.00056438,2]
[404573152,1770305464123,-500.0,0.00056438,120]
[404573153,1770305464134,-1007.5,0.00056438,30]
[404573154,1770305464144,-2025.68,0.00056438,120]
[404573155,1770305464155,-739.64,0.00056438,120]
[404573156,1770305464165,-891.32,0.00056438,7]
[404573157,1770305464176,-551.9,0.00056438,120]
[404573158,1770305464186,-500.0,0.00056438,120]
[404573159,1770305464196,-2072.5,0.00056438,120]
[404573160,1770305464207,-723.54,0.00056438,120]
[404573161,1770305464218,-7798.25,0.00056438,120]
[404573162,1770305464228,-7798.25,0.00056438,120]
[404573163,1770305464239,-2202.72,0.00056438,120]
[404573164,1770305464250,-500.0,0.00056438,120]
[404573165,1770305464263,-592.24200222,0.00056438,120]
[404573166,1770305464274,-500.0,0.00056438,120]
[404573167,1770305464286,-2952.51,0.00056438,120]
[404573168,1770305464296,-843.92,0.00056438,120]
[404573169,1770305464307,-500.0,0.00056438,120]
[404573170,1770305464317,-500.0,0.00056438,120]